fUSD/lending_fUSD_20240404
["ID","MTS","AMOUNT","RATE_DAILY","PERIOD"]
[321461534,1712200330249,-2799.35,0.0005589,120]
[321461535,1712200330259,-500.0,0.0005589,120]
[321461536,1712200330269,-1108.08,0.0005589,120]
[321461537,1712200330279,-2491.48,0.0005589,120]
[321461538,1712200330289,-2129.0,0.0005589,120]
[321461539,1712200330299,-557.32733646,0.0005589,120]
[321461540,1712200330309,-3318.06,0.0005589,120]
[321461541,1712200330318,-1922.21,0.0005589,120]
[321461542,1712200330327,-635.38,0.0005589,120]
[321461543,1712200330337,-1842.18,0.0005589,120]
[321461544,1712200330347,-500.0,0.0005589,120]
[321461545,1712200330357,-2240.52,0.0005589,120]
[321461546,1712200330368,-500.0,0.0005589,120]
[321461547,1712200330378,-7532.02,0.0005589,120]
[321461548,1712200330388,-2789.6,0.0005589,120]
[321461549,1712200330397,-500.0,0.0005589,120]
[321461550,1712200330407,-6100.85,0.0005589,120]
[321461551,1712200330416,-19673.78,0.0005589,120]
[321461552,1712200330426,-5747.2325918,0.00055923,2]
[321461553,1712200330435,-10818.6639846,0.00055923,2]
[321461554,1712200330445,-16397.721616,0.00055923,2]
[321461555,1712200330455,-1893.58,0.00055956,120]
[321461556,1712200330465,-1893.58,0.00055956,120]
[321461557,1712200330475,-152.0,0.00055959,20]
[321461558,1712200330484,-200000.0,0.00056,56]
[321461559,1712200330494,-15000.0,0.00056,120]
[321461560,1712200330503,-1000.0,0.00056,120]
[321461561,1712200330514,-10000.0,0.00056,120]
[321461562,1712200330523,-10000.0,0.00056,120]
[321461563,1712200330533,-10000.0,0.00056,120]
[321461564,1712200330543,-2035.67837317,0.00056,120]
[321461565,1712200330556,-200.0,0.00056,120]
[321461566,1712200330566,-750.0,0.00056,120]
[321461567,1712200330575,-151.0,0.00056,120]
[321461568,1712200330585,-999.0,0.00056,106]
[321461569,1712200330594,-10928.52005231,0.00056,120]
[321461570,1712200330604,-10000.0,0.00056,120]
[321461571,1712200330615,-10000.0,0.00056,120]
[321461572,1712200330625,-10000.0,0.00056,120]
[321461573,1712200330637,-961.27,0.00056027,120]
[321461574,1712200330647,-111522.0,0.00056029,6]
[321461575,1712200330657,-2017.34,0.00056029,6]
[321461576,1712200330666,-119766.4,0.00056029,6]
[321461577,1712200330676,-1151.93,0.00056136,120]
[321461578,1712200330685,-400.70968906,0.00056158,120]
[321461579,1712200330695,-508.5998955,0.00056158,120]
[321461580,1712200330705,-518.36859391,0.00056164,30]
[321461581,1712200330716,-500.0,0.00056164,120]
[321461582,1712200330726,-500.0,0.00056164,120]
[321461583,1712200330735,-539.00015861,0.00056164,120]
[321461584,1712200330745,-681.87,0.00056164,120]
[321461585,1712200330755,-364.22355359,0.00056164,120]
[321461586,1712200330764,-723.7,0.00056164,120]
[321461587,1712200330774,-728.77,0.00056164,120]
[321461588,1712200330783,-584.05,0.00056164,120]
[321461589,1712200330793,-500.0,0.00056164,120]
[321461590,1712200330803,-974.99,0.00056164,120]
[321461591,1712200330812,-500.0,0.00056164,120]
[321461592,1712200330822,-500.0,0.00056164,120]
[321461593,1712200330832,-500.0,0.00056164,2]
[321461594,1712200330842,-500.0,0.00056164,120]
[321461595,1712200330851,-578.06,0.00056164,120]
[321461596,1712200330863,-618.09,0.00056164,120]
[321461597,1712200330880,-500.0,0.00056164,120]
[321461598,1712200330891,-500.0,0.00056164,120]
[321461599,1712200330900,-500.0,0.00056164,120]
[321461600,1712200330911,-500.0,0.00056164,120]
[321461601,1712200330921,-539.8,0.00056164,120]
[321461602,1712200330931,-500.0,0.00056164,120]
[321461603,1712200330941,-500.0,0.00056164,120]
[321461604,1712200330952,-500.0,0.00056164,120]
[321461605,1712200330963,-641.88498848,0.00056164,120]
[321461606,1712200330973,-560.72,0.00056164,120]
[321461607,1712200330983,-675.6,0.00056164,120]
[321461608,1712200330992,-500.0,0.00056164,120]
[321461609,1712200331002,-500.0,0.00056164,120]
[321461610,1712200331012,-674.64,0.00056164,120]
[321461611,1712200331022,-532.24,0.00056164,120]
[321461612,1712200331031,-518.08,0.00056164,120]
[321461613,1712200331042,-813.48,0.00056164,120]
[321461614,1712200331052,-572.9970015,0.00056164,120]
[321461615,1712200331062,-631.14,0.00056164,120]
[321461616,1712200331072,-295.39853801,0.00056164,120]
[321461617,1712200331082,-500.0,0.00056164,120]
[321461618,1712200331092,-500.0,0.00056164,120]
[321461619,1712200331103,-797.4,0.00056164,120]
[321461620,1712200331116,-500.0,0.00056164,120]
[321461621,1712200331126,-961.27,0.00056164,120]
[321461622,1712200331135,-658.74,0.00056164,120]
[321461623,1712200331145,-818.65,0.00056164,120]
[321461624,1712200331154,-752.9,0.00056164,120]
[321461625,1712200331163,-539.48,0.00056164,120]
[321461626,1712200331173,-500.0,0.00056164,120]
[321461627,1712200331182,-500.0,0.00056164,120]
[321461628,1712200331191,-500.0,0.00056164,120]
[321461629,1712200331202,-500.0,0.00056164,120]
[321461630,1712200331211,-500.0,0.00056164,120]
[321461631,1712200331221,-1653.33,0.00056164,2]
[321461632,1712200331232,-500.0,0.00056164,120]
[321461633,1712200331243,-500.0,0.00056164,120]
[321461634,1712200331253,-735.54,0.00056164,120]
[321461635,1712200331263,-246.47732354,0.00056164,120]
[321461636,1712200331273,-500.0,0.00056164,120]
[321461637,1712200331283,-500.0,0.00056164,120]
[321461638,1712200331292,-500.0,0.00056164,120]
[321461639,1712200331302,-684.77906081,0.00056164,2]
[321461640,1712200331312,-676.77,0.00056164,120]
[321461641,1712200331322,-500.0,0.00056164,120]
[321461642,1712200331331,-919.9,0.00056164,120]
[321461643,1712200331341,-500.0,0.00056164,120]
[321461644,1712200331351,-500.0,0.00056164,120]
[321461645,1712200331361,-500.0,0.00056164,120]
[321461646,1712200331373,-573.69,0.00056164,120]
[321461647,1712200331383,-703.82,0.00056164,120]
[321461648,1712200331393,-500.0,0.00056164,120]
[321461649,1712200331403,-1029.43,0.00056164,120]
[321461650,1712200331413,-875.1,0.00056164,120]
[321461651,1712200331422,-2209.07,0.00056164,120]
[321461652,1712200331432,-705.27,0.00056164,120]
[321461653,1712200331443,-500.0,0.00056164,120]
[321461654,1712200331453,-751.57,0.00056164,120]
[321461655,1712200331462,-500.0,0.00056164,120]
[321461656,1712200331472,-1008.2,0.00056164,120]
[321461657,1712200331482,-500.0,0.00056164,120]
[321461658,1712200331492,-2122.58,0.00056164,120]
[321461659,1712200331502,-1103.16,0.00056164,120]
[321461660,1712200331511,-514.46,0.00056164,120]
[321461661,1712200331522,-929.17,0.00056164,120]
[321461662,1712200331531,-1658.5,0.00056164,30]
[321461663,1712200331541,-500.0,0.00056164,120]
[321461664,1712200331551,-668.56,0.00056164,120]
[321461665,1712200331561,-1348.04,0.00056164,120]
[321461666,1712200331570,-500.0,0.00056164,120]
[321461667,1712200331580,-500.0,0.00056164,120]
[321461668,1712200331590,-1849.99,0.00056164,120]
[321461669,1712200331599,-1432.04,0.00056164,120]
[321461670,1712200331609,-500.0,0.00056164,120]
[321461671,1712200331621,-509.61,0.00056164,120]
[321461672,1712200331630,-500.0,0.00056164,120]
[321461673,1712200331639,-500.0,0.00056164,120]
[321461674,1712200331649,-1244.36,0.00056164,120]
[321461675,1712200331658,-954.07,0.00056164,120]
[321461676,1712200331668,-1303.95,0.00056164,120]
[321461677,1712200331678,-500.0,0.00056164,120]
[321461678,1712200331687,-500.0,0.00056164,120]
[321461679,1712200331697,-1278.23,0.00056164,120]
[321461680,1712200331707,-706.05,0.00056164,120]
[321461681,1712200331717,-500.0,0.00056164,120]
[321461682,1712200331727,-541.43063025,0.00056164,120]
[321461683,1712200331737,-888.96,0.00056164,120]
[321461684,1712200331746,-1327.35,0.00056164,120]
[321461685,1712200331756,-540.54,0.00056164,120]
[321461686,1712200331766,-1122.07,0.00056164,120]
[321461687,1712200331776,-575.29,0.00056164,120]
[321461688,1712200331787,-533.99444934,0.00056164,120]
[321461689,1712200331797,-1000.0,0.00056164,30]
[321461690,1712200331806,-500.0,0.00056164,120]
[321461691,1712200331816,-500.0,0.00056164,120]
[321461692,1712200331827,-181.3089589,0.00056164,120]
[321461693,1712200331837,-500.0,0.00056164,120]
[321461694,1712200331848,-500.0,0.00056164,120]
[321461695,1712200331857,-937.01,0.00056164,120]
[321461696,1712200331868,-835.22,0.00056164,120]
[321461697,1712200331882,-500.0,0.00056164,120]
[321461698,1712200331892,-500.0,0.00056164,120]
[321461699,1712200331902,-611.33,0.00056164,120]
[321461700,1712200331913,-500.0,0.00056164,120]
[321461701,1712200331923,-500.0,0.00056164,120]
[321461702,1712200331933,-500.0,0.00056164,120]
[321461703,1712200331943,-500.0,0.00056164,120]
[321461704,1712200331954,-632.85,0.00056164,120]
[321461705,1712200331964,-680.97,0.00056164,120]
[321461706,1712200331974,-1000.0,0.00056164,60]
[321461707,1712200331985,-1123.71,0.00056164,120]
[321461708,1712200331995,-500.0,0.00056164,120]
[321461709,1712200332005,-500.0,0.00056164,120]
[321461710,1712200332015,-984.42,0.00056164,120]
[321461711,1712200332025,-500.0,0.00056164,120]
[321461712,1712200332035,-500.0,0.00056164,120]
[321461713,1712200332045,-1117.68,0.00056164,120]
[321461714,1712200332055,-500.0,0.00056164,120]
[321461715,1712200332065,-1174.17,0.00056164,120]
[321461716,1712200332075,-871.46,0.00056164,120]
[321461717,1712200332084,-500.0,0.00056164,120]
[321461718,1712200332094,-500.0,0.00056164,120]
[321461719,1712200332104,-1213.04,0.00056164,120]
[321461720,1712200332115,-500.0,0.00056164,120]
[321461721,1712200332126,-2563.86,0.00056164,120]
[321461722,1712200332136,-931.42,0.00056164,120]
[321461723,1712200332146,-516.8,0.00056164,120]
[321461724,1712200332155,-661.04,0.00056164,120]
[321461725,1712200332165,-961.33,0.00056164,120]
[321461726,1712200332175,-500.0,0.00056164,120]
[321461727,1712200332185,-1186.25,0.00056164,120]
[321461728,1712200332195,-500.0,0.00056164,120]
[321461729,1712200332206,-1011.46,0.00056164,120]
[321461730,1712200332215,-500.0,0.00056164,120]
[321461731,1712200332225,-664.68,0.00056164,120]
[321461732,1712200332238,-500.0,0.00056164,120]
[321461733,1712200332249,-500.0,0.00056164,120]
[321461734,1712200332261,-500.0,0.00056164,120]
[321461735,1712200332271,-500.0,0.00056164,120]
[321461736,1712200332280,-1280.05,0.00056164,120]
[321461737,1712200332290,-500.0,0.00056164,120]
[321461738,1712200332299,-500.0,0.00056164,120]
[321461739,1712200332310,-1040.16,0.00056164,120]
[321461740,1712200332320,-861.11,0.00056164,120]
[321461741,1712200332330,-1456.17,0.00056164,120]
[321461742,1712200332340,-554.95,0.00056164,120]
[321461743,1712200332350,-500.0,0.00056164,120]
[321461744,1712200332361,-979.87,0.00056164,120]
[321461745,1712200332375,-1376.36,0.00056164,120]
[321461746,1712200332385,-688.56,0.00056164,120]
[321461747,1712200332404,-798.23,0.00056164,120]
[321461748,1712200332426,-1326.85,0.00056164,120]
[321461749,1712200332448,-2000.0,0.00056164,30]
[321461750,1712200332469,-1138.59,0.00056164,120]
[321461751,1712200332490,-210.15494361,0.00056164,120]
[321461752,1712200332513,-500.0,0.00056164,120]
[321461753,1712200332537,-264.23841222,0.00056164,120]
[321461754,1712200332557,-512.74,0.00056164,120]
[321461755,1712200332567,-580.58,0.00056164,120]
[321461756,1712200332576,-966.92,0.00056164,120]
[321461757,1712200332785,-500.0,0.00056164,2]
[321461758,1712200332801,-1234.52,0.00056164,120]
[321461759,1712200332811,-2833.97,0.00056164,120]
[321461760,1712200332820,-500.0,0.00056164,120]
[321461761,1712200332830,-1217.52,0.00056164,120]
[321461762,1712200332839,-500.0,0.00056164,120]
[321461763,1712200332849,-603.02,0.00056164,120]
[321461764,1712200332858,-500.0,0.00056164,120]
[321461765,1712200332876,-568.47154676,0.00056164,120]
[321461766,1712200332886,-500.0,0.00056164,120]
[321461767,1712200332896,-516.97,0.00056164,120]
[321461768,1712200332906,-635.94,0.00056164,120]
[321461769,1712200332915,-1287.0,0.00056164,120]
[321461770,1712200332925,-1858.09,0.00056164,120]
[321461771,1712200332935,-912.58,0.00056164,80]
[321461772,1712200332944,-1134.63,0.00056164,120]
[321461773,1712200332955,-500.0,0.00056164,120]
[321461774,1712200332964,-867.47,0.00056164,120]
[321461775,1712200332973,-1123.8,0.00056164,120]
[321461776,1712200332982,-956.39,0.00056164,120]
[321461777,1712200332991,-500.0,0.00056164,120]
[321461778,1712200333001,-500.0,0.00056164,120]
[321461779,1712200333010,-1178.01,0.00056164,120]
[321461780,1712200333019,-500.0,0.00056164,120]
[321461781,1712200333028,-500.0,0.00056164,120]
[321461782,1712200333037,-1765.04,0.00056164,120]
[321461783,1712200333047,-500.0,0.00056164,120]
[321461784,1712200333056,-500.0,0.00056164,120]
[321461785,1712200333065,-699.49,0.00056164,120]
[321461786,1712200333074,-1601.82,0.00056164,120]
[321461787,1712200333083,-500.0,0.00056164,120]
[321461788,1712200333092,-1123.23,0.00056164,120]
[321461789,1712200333101,-1306.97,0.00056164,120]
[321461790,1712200333110,-500.0,0.00056164,120]
[321461791,1712200333123,-541.76,0.00056164,120]
[321461792,1712200333132,-1622.05,0.00056164,120]
[321461793,1712200333141,-715.64,0.00056164,120]
[321461794,1712200333150,-654.96,0.00056164,120]
[321461795,1712200333159,-646.89,0.00056164,120]
[321461796,1712200333169,-782.49,0.00056164,120]
[321461797,1712200333178,-500.0,0.00056164,120]
[321461798,1712200333187,-856.28,0.00056164,120]
[321461799,1712200333197,-500.0,0.00056164,120]
[321461800,1712200333206,-1403.71,0.00056164,120]
[321461801,1712200333216,-699.19,0.00056164,120]
[321461802,1712200333225,-510.7,0.00056164,120]
[321461803,1712200333234,-500.0,0.00056164,120]
[321461804,1712200333245,-500.0,0.00056164,120]
[321461805,1712200333255,-500.0,0.00056164,120]
[321461806,1712200333264,-1770.64,0.00056164,120]
[321461807,1712200333273,-500.0,0.00056164,120]
[321461808,1712200333283,-500.0,0.00056164,2]
[321461809,1712200333292,-292.48570082,0.00056164,120]
[321461810,1712200333301,-1207.23,0.00056164,30]
[321461811,1712200333310,-500.0,0.00056164,120]
[321461812,1712200333319,-500.0,0.00056164,120]
[321461813,1712200333329,-500.0,0.00056164,120]
[321461814,1712200333338,-526.92195698,0.00056164,120]
[321461815,1712200333347,-897.12,0.00056164,120]
[321461816,1712200333356,-500.0,0.00056164,120]
[321461817,1712200333366,-940.76,0.00056164,120]
[321461818,1712200333377,-500.0,0.00056164,120]
[321461819,1712200333386,-511.27,0.00056164,120]
[321461820,1712200333395,-500.0,0.00056164,120]
[321461821,1712200333404,-500.0,0.00056164,120]
[321461822,1712200333414,-1291.56,0.00056164,120]
[321461823,1712200333423,-500.0,0.00056164,120]
[321461824,1712200333433,-1169.61,0.00056164,120]
[321461825,1712200333442,-1966.91,0.00056164,120]
[321461826,1712200333451,-653.18,0.00056164,120]
[321461827,1712200333460,-888.0,0.00056164,120]
[321461828,1712200333469,-579.59,0.00056164,120]
[321461829,1712200333478,-1199.82,0.00056164,120]
[321461830,1712200333488,-500.0,0.00056164,120]
[321461831,1712200333497,-567.67,0.00056164,120]
[321461832,1712200333506,-500.0,0.00056164,120]
[321461833,1712200333516,-1162.9,0.00056164,120]
[321461834,1712200333525,-1481.02,0.00056164,120]
[321461835,1712200333533,-500.0,0.00056164,120]
[321461836,1712200333543,-957.29,0.00056164,120]
[321461837,1712200333552,-536.12,0.00056164,120]
[321461838,1712200333561,-702.57,0.00056164,120]
[321461839,1712200333570,-628.45,0.00056164,120]
[321461840,1712200333579,-532.29,0.00056164,120]
[321461841,1712200333588,-1230.49,0.00056164,120]
[321461842,1712200333597,-500.0,0.00056164,120]
[321461843,1712200333607,-500.0,0.00056164,120]
[321461844,1712200333616,-1354.79,0.00056164,120]
[321461845,1712200333627,-500.0,0.00056164,120]
[321461846,1712200333636,-500.0,0.00056164,120]
[321461847,1712200333645,-500.0,0.00056164,120]
[321461848,1712200333655,-594.72,0.00056164,120]
[321461849,1712200333664,-1168.31,0.00056164,120]
[321461850,1712200333673,-745.92,0.00056164,120]
[321461851,1712200333682,-519.19,0.00056164,120]
[321461852,1712200333691,-510.35,0.00056164,120]
[321461853,1712200333701,-500.0,0.00056164,120]
[321461854,1712200333710,-538.5,0.00056164,120]
[321461855,1712200333719,-500.0,0.00056164,120]
[321461856,1712200333728,-1661.46,0.00056164,120]
[321461857,1712200333738,-810.25,0.00056164,120]
[321461858,1712200333747,-500.0,0.00056164,120]
[321461859,1712200333757,-312.47788707,0.00056164,120]
[321461860,1712200333766,-519.32,0.00056164,120]
[321461861,1712200333775,-856.61,0.00056164,120]
[321461862,1712200333785,-1325.1,0.00056164,120]
[321461863,1712200333794,-150.0,0.00056164,120]
[321461864,1712200333803,-500.0,0.00056164,120]
[321461865,1712200333813,-1704.02,0.00056164,120]
[321461866,1712200333822,-843.85,0.00056164,120]
[321461867,1712200333831,-500.0,0.00056164,120]
[321461868,1712200333840,-500.0,0.00056164,120]
[321461869,1712200333850,-734.5,0.00056164,120]
[321461870,1712200333860,-500.0,0.00056164,120]
[321461871,1712200333872,-1242.09,0.00056164,120]
[321461872,1712200333882,-500.0,0.00056164,120]
[321461873,1712200333892,-1149.11,0.00056164,120]
[321461874,1712200333901,-500.0,0.00056164,120]
[321461875,1712200333910,-801.39,0.00056164,120]
[321461876,1712200333921,-500.0,0.00056164,120]
[321461877,1712200333930,-636.22,0.00056164,120]
[321461878,1712200333941,-500.0,0.00056164,120]
[321461879,1712200333951,-500.0,0.00056164,120]
[321461880,1712200333961,-500.0,0.00056164,120]
[321461881,1712200333970,-1372.43,0.00056164,120]
[321461882,1712200333980,-498.76287503,0.00056164,120]
[321461883,1712200333990,-500.0,0.00056164,120]
[321461884,1712200333999,-500.0,0.00056164,120]
[321461885,1712200334009,-500.0,0.00056164,120]
[321461886,1712200334018,-556.7,0.00056164,120]
[321461887,1712200334028,-690.45,0.00056164,120]
[321461888,1712200334037,-828.45,0.00056164,120]
[321461889,1712200334047,-1151.88,0.00056164,120]
[321461890,1712200334057,-1261.2,0.00056164,120]
[321461891,1712200334066,-1473.05,0.00056164,120]
[321461892,1712200334076,-500.0,0.00056164,120]
[321461893,1712200334085,-500.0,0.00056164,120]
[321461894,1712200334094,-1240.18,0.00056164,120]
[321461895,1712200334104,-735.68,0.00056164,120]
[321461896,1712200334115,-833.51,0.00056164,120]
[321461897,1712200334127,-700.88,0.00056164,120]
[321461898,1712200334136,-1814.63,0.00056164,120]
[321461899,1712200334146,-1000.0,0.00056164,120]
[321461900,1712200334157,-500.0,0.00056164,120]
[321461901,1712200334166,-500.0,0.00056164,120]
[321461902,1712200334175,-500.0,0.00056164,120]
[321461903,1712200334184,-564.69798864,0.00056164,120]
[321461904,1712200334194,-982.74,0.00056164,120]
[321461905,1712200334204,-500.0,0.00056164,120]
[321461906,1712200334213,-545.1,0.00056164,120]
[321461907,1712200334222,-500.0,0.00056164,120]
[321461908,1712200334232,-560.66,0.00056164,120]
[321461909,1712200334241,-500.0,0.00056164,120]
[321461910,1712200334251,-618.23,0.00056164,120]
[321461911,1712200334260,-1375.95,0.00056164,120]
[321461912,1712200334270,-741.9,0.00056164,120]
[321461913,1712200334279,-500.0,0.00056164,120]
[321461914,1712200334288,-500.0,0.00056164,120]
[321461915,1712200334298,-500.0,0.00056164,120]
[321461916,1712200334307,-1688.43,0.00056164,120]
[321461917,1712200334317,-1668.8,0.00056164,120]
[321461918,1712200334326,-500.0,0.00056164,120]
[321461919,1712200334335,-1118.0,0.00056164,120]
[321461920,1712200334345,-500.0,0.00056164,120]
[321461921,1712200334355,-500.0,0.00056164,120]
[321461922,1712200334364,-954.25,0.00056164,120]
[321461923,1712200334375,-500.0,0.00056164,120]
[321461924,1712200334384,-500.0,0.00056164,120]
[321461925,1712200334394,-1884.27,0.00056164,120]
[321461926,1712200334403,-1030.65,0.00056164,120]
[321461927,1712200334412,-500.0,0.00056164,120]
[321461928,1712200334422,-619.94,0.00056164,120]
[321461929,1712200334431,-1616.86,0.00056164,120]
[321461930,1712200334441,-500.0,0.00056164,120]
[321461931,1712200334450,-500.0,0.00056164,120]
[321461932,1712200334460,-1251.78,0.00056164,120]
[321461933,1712200334469,-500.0,0.00056164,120]
[321461934,1712200334478,-1329.29,0.00056164,120]
[321461935,1712200334487,-500.0,0.00056164,120]
[321461936,1712200334497,-896.81,0.00056164,2]
[321461937,1712200334507,-702.32,0.00056164,120]
[321461938,1712200334516,-1181.29,0.00056164,120]
[321461939,1712200334526,-1340.28,0.00056164,120]
[321461940,1712200334537,-500.0,0.00056164,120]
[321461941,1712200334547,-966.98,0.00056164,120]
[321461942,1712200334558,-6357.1,0.00056164,120]
[321461943,1712200334567,-890.32,0.00056164,120]
[321461944,1712200334576,-500.0,0.00056164,120]
[321461945,1712200334586,-5000.0,0.00056164,120]
[321461946,1712200334596,-545.07973074,0.00056164,120]
[321461947,1712200334605,-1386.12,0.00056164,120]
[321461948,1712200334615,-500.0,0.00056164,120]
[321461949,1712200334626,-1721.46,0.00056164,120]
[321461950,1712200334635,-821.48,0.00056164,120]
[321461951,1712200334644,-500.0,0.00056164,120]
[321461952,1712200334653,-1947.85,0.00056164,120]
[321461953,1712200334663,-396.12276666,0.00056164,120]
[321461954,1712200334674,-1400.11,0.00056164,120]
[321461955,1712200334683,-1219.29,0.00056164,120]
[321461956,1712200334693,-500.0,0.00056164,120]
[321461957,1712200334702,-1116.96,0.00056164,120]
[321461958,1712200334711,-2098.39,0.00056164,120]
[321461959,1712200334721,-3864.9,0.00056164,120]
[321461960,1712200334730,-954.49,0.00056164,120]
[321461961,1712200334739,-500.0,0.00056164,120]
[321461962,1712200334749,-534.21,0.00056164,120]
[321461963,1712200334758,-1845.84,0.00056164,120]
[321461964,1712200334768,-7000.0,0.00056164,120]
[321461965,1712200334777,-1293.92,0.00056164,120]
[321461966,1712200334787,-500.0,0.00056164,120]
[321461967,1712200334797,-2905.09,0.00056164,120]
[321461968,1712200334806,-500.0,0.00056164,120]
[321461969,1712200334815,-647.32,0.00056164,120]
[321461970,1712200334825,-2444.5,0.00056164,120]
[321461971,1712200334835,-500.0,0.00056164,120]
[321461972,1712200334845,-2000.0,0.00056164,120]
[321461973,1712200334854,-5301.8,0.00056164,120]
[321461974,1712200334864,-500.0,0.00056164,120]
[321461975,1712200334877,-500.0,0.00056164,120]
[321461976,1712200334886,-534.88,0.00056164,120]
[321461977,1712200334895,-2706.47,0.00056164,120]
[321461978,1712200334904,-500.0,0.00056164,120]
[321461979,1712200334913,-2575.73447282,0.00056164,120]
[321461980,1712200335556,-1288.55552718,0.00056164,120]
[321461981,1712200335565,-596.6,0.00056164,120]
[321461982,1712200335575,-1563.7,0.00056164,120]
[321461983,1712200335584,-500.0,0.00056164,120]
[321461984,1712200335593,-500.0,0.00056164,120]
[321461985,1712200335602,-2328.79,0.00056164,120]
[321461986,1712200335611,-5451.86,0.00056164,120]
[321461987,1712200335621,-2730.07,0.00056164,120]
[321461988,1712200335630,-638.42,0.00056164,120]
[321461989,1712200335847,-534.29,0.00056164,120]
[321461990,1712200335861,-694.4,0.00056164,120]
[321461991,1712200335872,-523.74,0.00056164,120]
[321461992,1712200335884,-640.83315476,0.00056164,30]
[321461993,1712200335893,-500.0,0.00056164,120]
[321461994,1712200335902,-846.32,0.00056164,120]
[321461995,1712200335911,-985.74,0.00056164,120]
[321461996,1712200335920,-3423.85,0.00056164,120]
[321461997,1712200335929,-500.0,0.00056164,120]
[321461998,1712200335939,-4903.62,0.00056164,120]
[321461999,1712200335948,-2225.21,0.00056164,120]
[321462000,1712200335958,-4099.83,0.00056164,120]
[321462001,1712200335968,-500.0,0.00056164,120]
[321462002,1712200335977,-769.61,0.00056164,120]
[321462003,1712200335987,-3165.76,0.00056164,120]
[321462004,1712200335996,-500.0,0.00056164,120]
[321462005,1712200336005,-1040.28,0.00056164,120]
[321462006,1712200336015,-500.0,0.00056164,120]
[321462007,1712200336024,-9130.88,0.00056164,120]
[321462008,1712200336034,-5027.15,0.00056164,120]
[321462009,1712200336043,-500.0,0.00056164,120]
[321462010,1712200336053,-546.03,0.00056164,120]
[321462011,1712200336062,-2873.37,0.00056164,120]
[321462012,1712200336072,-500.0,0.00056164,120]
[321462013,1712200336081,-500.0,0.00056164,120]
[321462014,1712200336091,-705.68,0.00056164,120]
[321462015,1712200336100,-1850.68,0.00056164,120]
[321462016,1712200336110,-782.7,0.00056164,120]
[321462017,1712200336121,-594.92,0.00056164,120]
[321462018,1712200336130,-500.0,0.00056164,120]
[321462019,1712200336140,-4035.15,0.00056164,120]
[321462020,1712200336149,-1606.71,0.00056164,120]
[321462021,1712200336160,-2413.37,0.00056164,120]
[321462022,1712200336169,-1349.71,0.00056164,120]
[321462023,1712200336182,-551.94,0.00056164,120]
[321462024,1712200336192,-836.33,0.00056164,120]
[321462025,1712200336201,-1282.09,0.00056164,120]
[321462026,1712200336211,-945.36,0.00056164,120]
[321462027,1712200336220,-275.72349119,0.00056164,120]
[321462028,1712200336229,-500.0,0.00056164,120]
[321462029,1712200336239,-1406.21,0.00056164,120]
[321462030,1712200336249,-946.04,0.00056164,120]
[321462031,1712200336259,-641.98,0.00056164,120]
[321462032,1712200336269,-500.0,0.00056164,120]
[321462033,1712200336279,-898.28,0.00056164,120]